fUST/lending_fUST_20250707
["ID","MTS","AMOUNT","RATE_DAILY","PERIOD"]
[370009740,1751829034830,-521.21,0.00016868,2]
[370009741,1751829034840,-3697.57,0.00016868,2]
[370009742,1751829034849,-1179.98,0.00016868,2]
[370009743,1751829034858,-460.0,0.00016868,2]
[370009744,1751829034868,-500.0,0.00016868,2]
[370009745,1751829034878,-443.07193222,0.00016868,2]
[370009746,1751829034888,-500.0,0.00016868,2]
[370009747,1751829034898,-500.0,0.00016868,2]
[370009748,1751829034908,-500.0,0.00016868,2]
[370009749,1751829034917,-500.0,0.00016868,2]
[370009750,1751829034926,-500.0,0.00016868,2]
[370009751,1751829034936,-513.87828536,0.00016868,2]
[370009752,1751829034945,-500.0,0.00016868,2]
[370009753,1751829034955,-500.0,0.00016868,2]
[370009754,1751829034964,-500.0,0.00016868,2]
[370009755,1751829034974,-500.0,0.00016868,2]
[370009756,1751829034983,-500.0,0.00016868,2]
[370009757,1751829034993,-500.0,0.00016868,2]
[370009758,1751829035002,-500.0,0.00016868,2]
[370009759,1751829035012,-500.0,0.00016868,2]
[370009760,1751829035021,-500.0,0.00016868,2]
[370009761,1751829035031,-500.0,0.00016868,2]
[370009762,1751829035041,-500.0,0.00016868,2]
[370009763,1751829035050,-500.0,0.00016868,2]
[370009764,1751829035059,-500.0,0.00016868,2]
[370009765,1751829035069,-500.0,0.00016868,2]
[370009766,1751829035078,-500.0,0.00016868,2]
[370009767,1751829035088,-500.0,0.00016868,2]
[370009768,1751829035097,-500.0,0.00016868,2]
[370009769,1751829035107,-500.0,0.00016868,2]
[370009770,1751829035117,-500.0,0.00016868,2]
[370009771,1751829035126,-500.0,0.00016868,2]
[370009772,1751829035135,-500.0,0.00016868,2]
[370009773,1751829035145,-500.0,0.00016868,2]
[370009774,1751829035155,-283.26861243,0.00016868,2]
[370009775,1751829035164,-283413.21572951,0.00016869,2]
[370009776,1751829035311,-5415.31374388,0.00016869,2]
[370009777,1751829035336,-4626.59680709,0.00016869,2]
[370009778,1751829035348,-21140.49443412,0.00016869,2]
[370009779,1751829035368,-1085.54040766,0.00016869,2]
[370009780,1751829035379,-975.42,0.00016869,2]
[370009781,1751829035390,-53343.41887774,0.00016869,2]
[370009782,1751829035400,-151.0,0.000169,2]
[370009783,1751829035409,-460.0,0.00016965,2]
[370009784,1751829035419,-460.0,0.00016965,2]
[370009785,1751829035428,-461.07488573,0.00016965,2]
[370009786,1751829035438,-460.0,0.00016965,2]
[370009787,1751829035447,-460.0,0.00016965,2]
[370009788,1751829035456,-460.0,0.00016965,2]
[370009789,1751829035465,-253.09753453,0.00016965,2]
[370009809,1751829037946,-460.0,0.00016861,2]
[370009811,1751829037957,-463.78686849,0.00016867,2]
[370009814,1751829037978,-113.59313151,0.00016867,2]
[370009816,1751829037990,-180.40686649,0.00016867,2]
[370009823,1751829038053,-279.59313351,0.00016867,2]
[370009825,1751829038063,-414.32732029,0.000169,2]
[370009827,1751829038073,-206.90246547,0.00016965,2]
[370009829,1751829038083,-460.0,0.00016965,2]
[370009831,1751829038093,-460.0,0.00016965,2]
[370009833,1751829038103,-509.10880088,0.00016965,2]
[370009835,1751829038112,-460.0,0.00016965,2]
[370009837,1751829038122,-500.0,0.00016965,2]
[370009839,1751829038132,-660.94,0.00016965,2]
[370009841,1751829038142,-460.0,0.00016965,2]
[370009843,1751829038151,-460.0,0.00016965,2]
[370009845,1751829038162,-460.0,0.00016965,2]
[370009847,1751829038171,-460.0,0.00016965,2]
[370009849,1751829038181,-460.0,0.00016965,2]
[370009850,1751829038191,-460.0,0.00016965,2]
[370009852,1751829038200,-807.44,0.00016965,2]
[370009854,1751829038210,-460.0,0.00016965,2]
[370009855,1751829038219,-460.0,0.00016965,2]
[370009856,1751829038229,-541.60539409,0.00016965,2]
[370009857,1751829038238,-460.0,0.00016965,2]
[370009858,1751829038248,-460.0,0.00016965,2]
[370009859,1751829038258,-460.0,0.00016965,2]
[370009860,1751829038268,-460.0,0.00016965,2]
[370009861,1751829038277,-460.0,0.00016965,2]
[370009862,1751829038287,-500.0,0.00016965,2]
[370009863,1751829038298,-460.0,0.00016965,2]
[370009864,1751829038308,-460.0,0.00016965,2]
[370009865,1751829038318,-460.0,0.00016965,2]
[370009866,1751829038327,-541.15,0.00016965,2]
[370009867,1751829038337,-460.0,0.00016965,2]
[370009868,1751829038347,-460.0,0.00016965,2]
[370009869,1751829038357,-460.0,0.00016965,2]
[370009870,1751829038366,-460.0,0.00016965,2]
[370009871,1751829038376,-460.0,0.00016965,2]
[370009872,1751829038385,-433.0633059,0.00016965,2]
[370009873,1751829038395,-460.0,0.00016965,2]
[370009874,1751829038405,-460.0,0.00016965,2]
[370009875,1751829038415,-460.0,0.00016965,2]
[370009876,1751829038425,-460.0,0.00016965,2]
[370009877,1751829038434,-460.0,0.00016965,2]
[370009878,1751829038445,-500.0,0.00016965,2]
[370009879,1751829038456,-460.0,0.00016965,2]
[370009880,1751829038466,-460.0,0.00016965,2]
[370009881,1751829038477,-414.32732029,0.00016965,2]
[370009882,1751829038486,-460.0,0.00016966,2]
[370009883,1751829038496,-460.0,0.00016966,2]
[370009884,1751829038506,-260.16920844,0.00016966,2]
[370009885,1751829038515,-460.0,0.00016966,2]
[370009886,1751829038525,-460.0,0.00016966,2]
[370009887,1751829038535,-460.0,0.00016966,2]
[370009888,1751829038551,-460.0,0.00016966,2]
[370009889,1751829038561,-460.0,0.00016966,2]
[370009890,1751829038571,-460.0,0.00016966,2]
[370009891,1751829038580,-312.1468531,0.00016966,2]
[370009892,1751829038590,-460.0,0.00016966,2]
[370009893,1751829038600,-460.0,0.00016966,2]
[370009894,1751829038610,-460.0,0.00016966,2]
[370009895,1751829038619,-460.0,0.00016966,2]
[370009896,1751829038629,-460.0,0.00016966,2]
[370009897,1751829038639,-460.0,0.00016966,2]
[370009898,1751829038653,-460.0,0.00016966,2]
[370009899,1751829038663,-465.77322582,0.00016966,2]
[370009900,1751829038672,-194.32346477,0.00016966,2]
[370009901,1751829038683,-460.0,0.00016966,2]
[370009902,1751829038692,-460.0,0.00016966,2]
[370009903,1751829038702,-455.0,0.00016966,2]
[370009904,1751829038711,-460.0,0.00016966,2]
[370009905,1751829038722,-529.01966624,0.00016966,2]
[370009906,1751829038732,-460.0,0.00016966,2]
[370009907,1751829038742,-197.76011633,0.00016966,2]
[370009908,1751829038752,-460.0,0.00016966,2]
[370009909,1751829038762,-460.0,0.00016966,2]
[370009910,1751829038772,-460.0,0.00016966,2]
[370009911,1751829038782,-460.0,0.00016966,2]
[370009912,1751829038796,-460.0,0.00016966,2]
[370009913,1751829038806,-460.0,0.00016966,2]
[370009914,1751829038816,-460.0,0.00016966,2]
[370009915,1751829038826,-460.0,0.00016966,2]
[370009916,1751829038837,-460.0,0.00016966,2]
[370009917,1751829038847,-460.0,0.00016966,2]
[370009918,1751829038856,-460.0,0.00016966,2]
[370009919,1751829038866,-464.68187714,0.00016966,2]
[370009920,1751829038876,-460.0,0.00016966,2]
[370009921,1751829038887,-464.69688103,0.00016966,2]
[370009922,1751829038897,-460.0,0.00016966,2]
[370009923,1751829038908,-500.0,0.00016966,2]
[370009924,1751829038918,-500.0,0.00016966,2]
[370009925,1751829038928,-241.36,0.00016967,2]
[370009926,1751829038938,-460.0,0.00016967,2]
[370009927,1751829038949,-460.0,0.00016967,2]
[370009928,1751829039150,-460.0,0.00016967,2]
[370009929,1751829039160,-460.0,0.00016967,2]
[370009930,1751829039170,-460.0,0.00016967,2]
[370009931,1751829039180,-324.14623544,0.00016967,2]
[370009932,1751829039189,-460.0,0.00016967,2]
[370009933,1751829039199,-460.0,0.00016967,2]
[370009935,1751829039208,-460.0,0.00016967,2]
[370009936,1751829039218,-471.80231327,0.00016967,2]
[370009938,1751829039227,-500.0,0.00016967,2]
[370009939,1751829039236,-500.0,0.00016967,2]
[370009940,1751829039245,-500.0,0.00016968,2]
[370009941,1751829039255,-500.0,0.00016968,2]
[370009942,1751829039264,-500.0,0.00016968,2]
[370009943,1751829039274,-500.0,0.00016968,2]
[370009944,1751829039284,-151.0,0.00017,2]
[370009945,1751829039296,-5448.16403019,0.00017,2]
[370009946,1751829039305,-151.0,0.000171,2]
[370009947,1751829039315,-151.0,0.000171,2]
[370009948,1751829039324,-6268.23370487,0.00017133,2]
[370009949,1751829039334,-460.0,0.00017134,2]
[370009950,1751829039343,-460.0,0.00017134,2]
[370009951,1751829039352,-460.0,0.00017134,2]
[370009952,1751829039362,-460.0,0.00017134,2]
[370009954,1751829039372,-460.0,0.00017134,2]
[370009956,1751829039382,-460.0,0.00017134,2]
[370009958,1751829039391,-460.0,0.00017134,2]
[370009959,1751829039401,-460.0,0.00017134,2]
[370009961,1751829039411,-1648.69,0.00017134,2]
[370009962,1751829039420,-460.0,0.00017134,2]
[370009963,1751829039430,-460.0,0.00017134,2]
[370009964,1751829039440,-290.44314168,0.00017135,2]
[370009965,1751829039451,-460.0,0.00017135,2]
[370009966,1751829039460,-460.0,0.00017135,2]
[370009967,1751829039471,-2459.02,0.00017135,2]
[370009968,1751829039480,-460.0,0.00017135,2]
[370009969,1751829039490,-460.0,0.00017135,2]
[370009970,1751829039501,-1878.33,0.00017135,2]
[370009971,1751829039510,-460.0,0.00017135,2]
[370009972,1751829039519,-460.0,0.00017135,2]
[370009973,1751829039529,-2261.21,0.00017135,2]
[370009974,1751829039540,-460.0,0.00017135,2]
[370009975,1751829039550,-2373.73,0.00017135,2]
[370009976,1751829039559,-460.0,0.00017135,2]
[370009977,1751829039568,-1821.06,0.00017135,2]
[370009979,1751829039578,-460.0,0.00017135,2]
[370009981,1751829039587,-460.0,0.00017135,2]
[370009983,1751829039597,-275.5978787,0.00017135,2]
[370009985,1751829039606,-1339.43,0.00017135,2]
[370009987,1751829039616,-460.0,0.00017135,2]
[370009989,1751829039625,-460.0,0.00017135,2]
[370009991,1751829039634,-460.0,0.00017135,2]
[370009993,1751829039645,-1083.34,0.00017135,2]
[370009995,1751829039656,-1423.25,0.00017135,2]
[370009996,1751829039665,-460.0,0.00017135,2]
[370009998,1751829039675,-460.0,0.00017135,2]
[370010000,1751829039684,-460.0,0.00017135,2]
[370010002,1751829039695,-460.0,0.00017137,2]
[370010004,1751829039704,-460.0,0.00017137,2]
[370010005,1751829039714,-460.0,0.00017137,2]
[370010006,1751829039725,-460.0,0.00017137,2]
[370010007,1751829039735,-547.31899522,0.00017137,2]
[370010008,1751829039744,-460.0,0.00017137,2]
[370010009,1751829039754,-460.0,0.00017137,2]
[370010010,1751829039764,-319.84061839,0.00017137,2]
[370010011,1751829039774,-460.0,0.00017137,2]
[370010013,1751829039783,-460.0,0.00017137,2]
[370010015,1751829039794,-460.0,0.00017137,2]
[370010017,1751829039803,-460.0,0.00017137,2]
[370010019,1751829039813,-460.0,0.00017137,2]
[370010021,1751829039823,-460.0,0.00017137,2]
[370010023,1751829039833,-460.0,0.00017137,2]
[370010025,1751829039843,-460.0,0.00017137,2]
[370010027,1751829039852,-460.0,0.00017137,2]
[370010029,1751829039862,-460.0,0.00017137,2]
[370010031,1751829039871,-460.0,0.00017137,2]
[370010033,1751829039881,-460.0,0.00017137,2]
[370010035,1751829039891,-460.0,0.00017137,2]
[370010037,1751829039900,-460.0,0.00017137,2]
[370010039,1751829039910,-460.0,0.00017137,2]
[370010041,1751829039920,-460.0,0.00017137,2]
[370010043,1751829039930,-460.0,0.00017137,2]
[370010045,1751829039939,-726.78,0.00017137,2]
[370010047,1751829039949,-460.0,0.00017137,2]
[370010049,1751829039959,-460.0,0.00017137,2]
[370010052,1751829039979,-460.0,0.00017137,2]
[370010054,1751829039990,-2304.57,0.00017137,2]
[370010056,1751829040001,-460.0,0.00017137,2]
[370010058,1751829040012,-482.31,0.00017137,2]
[370010060,1751829040023,-480.1589358,0.00017137,2]
[370010062,1751829040033,-460.0,0.00017137,2]
[370010064,1751829040043,-460.0,0.00017137,2]
[370010066,1751829040053,-716.37,0.00017137,2]
[370010068,1751829040063,-391.35,0.00017137,2]
[370010070,1751829040075,-460.0,0.00017137,2]
[370010072,1751829040085,-460.0,0.00017137,2]
[370010074,1751829040095,-465.49882219,0.00017137,2]
[370010076,1751829040105,-460.0,0.00017137,2]
[370010077,1751829040114,-460.0,0.00017137,2]
[370010078,1751829040124,-460.0,0.00017137,2]
[370010079,1751829040134,-460.0,0.00017137,2]
[370010081,1751829040144,-460.0,0.00017137,2]
[370010082,1751829040153,-460.0,0.00017137,2]
[370010083,1751829040163,-460.0,0.00017137,2]
[370010084,1751829040174,-460.0,0.0001714,2]
[370010085,1751829040184,-460.0,0.0001714,2]
[370010086,1751829040193,-413.87554016,0.0001714,2]
[370010087,1751829040203,-353.69701137,0.0001714,2]
[370010088,1751829040212,-430.0,0.0001714,2]
[370010089,1751829040223,-460.0,0.0001714,2]
[370010090,1751829040232,-460.0,0.00017141,2]
[370010091,1751829040242,-470.83385975,0.00017141,2]
[370010092,1751829040252,-460.0,0.00017141,2]
[370010093,1751829040261,-460.0,0.00017141,2]
[370010094,1751829040270,-460.0,0.00017141,2]
[370010095,1751829040280,-460.0,0.00017141,2]
[370010096,1751829040290,-407.22062487,0.00017141,2]
[370010097,1751829040299,-518.66,0.00017141,2]
[370010098,1751829040309,-460.0,0.00017141,2]
[370010099,1751829040319,-460.0,0.00017141,2]
[370010100,1751829040329,-460.0,0.00017141,2]
[370010101,1751829040338,-460.0,0.00017141,2]
[370010102,1751829040349,-568.47,0.00017141,2]
[370010103,1751829040359,-460.0,0.00017141,2]
[370010104,1751829040369,-644.88,0.00017141,2]
[370010105,1751829040379,-1673.97,0.00017141,2]
[370010106,1751829040388,-671.7,0.00017141,2]
[370010107,1751829040398,-1018.32,0.00017141,2]
[370010108,1751829040412,-460.0,0.00017141,2]
[370010109,1751829040424,-460.0,0.00017141,2]
[370010110,1751829040434,-1464.64,0.00017141,2]
[370010111,1751829040444,-1068.81,0.00017141,2]
[370010112,1751829040453,-460.0,0.00017141,2]
[370010113,1751829040464,-460.0,0.00017142,2]
[370010114,1751829040473,-460.0,0.00017142,2]
[370010115,1751829040483,-460.0,0.00017142,2]
[370010116,1751829040493,-2141.93,0.00017142,2]
[370010117,1751829040503,-460.0,0.00017142,2]
[370010118,1751829040512,-1393.2,0.00017142,2]
[370010119,1751829040522,-521.21,0.00017142,2]
[370010120,1751829040531,-3697.57,0.00017142,2]
[370010121,1751829040542,-1179.98,0.00017142,2]
[370010122,1751829040551,-151.0,0.000172,2]
[370010123,1751829040561,-151.0,0.000172,2]
[370010124,1751829040570,-538.09417983,0.00017239,2]
[370010125,1751829040579,-460.0,0.00017239,2]
[370010126,1751829040589,-460.0,0.00017239,2]
[370010127,1751829040598,-460.0,0.00017239,2]
[370010128,1751829040608,-660.94,0.00017239,2]
[370010129,1751829040617,-460.0,0.00017239,2]
[370010130,1751829040627,-460.0,0.00017239,2]
[370010131,1751829040637,-460.0,0.00017239,2]
[370010132,1751829040650,-537.37505171,0.00017239,2]
[370010134,1751829040661,-460.0,0.00017239,2]
[370010136,1751829040670,-460.0,0.00017239,2]
[370010138,1751829040680,-807.44,0.00017239,2]
[370010140,1751829040690,-460.0,0.00017239,2]
[370010141,1751829040701,-460.0,0.00017239,2]
[370010142,1751829040711,-460.0,0.00017239,2]
[370010143,1751829040721,-460.0,0.00017239,2]
[370010144,1751829040730,-460.0,0.00017239,2]
[370010145,1751829040740,-460.0,0.00017239,2]
[370010146,1751829040750,-460.0,0.00017239,2]
[370010147,1751829040759,-541.15,0.00017239,2]
[370010148,1751829040769,-460.0,0.00017239,2]
[370010149,1751829040779,-460.0,0.00017239,2]
[370010150,1751829040789,-460.0,0.00017239,2]
[370010151,1751829040800,-460.0,0.00017239,2]
[370010152,1751829040809,-460.0,0.00017239,2]
[370010153,1751829040820,-460.0,0.00017239,2]
[370010154,1751829040830,-460.0,0.00017239,2]
[370010155,1751829040839,-415.76003665,0.0001724,2]
[370010156,1751829040849,-460.0,0.0001724,2]
[370010157,1751829040859,-460.0,0.0001724,2]
[370010158,1751829040871,-460.0,0.0001724,2]
[370010159,1751829040882,-206.72417044,0.0001724,2]
[370010160,1751829040892,-460.0,0.0001724,2]
[370010161,1751829040902,-460.0,0.0001724,2]
[370010162,1751829040911,-460.0,0.0001724,2]
[370010163,1751829040921,-460.0,0.0001724,2]
[370010164,1751829040931,-460.0,0.0001724,2]
[370010165,1751829040941,-460.0,0.0001724,2]
[370010166,1751829040951,-460.0,0.0001724,2]
[370010167,1751829040961,-460.0,0.0001724,2]
[370010168,1751829040971,-460.0,0.0001724,2]
[370010169,1751829040981,-460.0,0.00017241,2]
[370010170,1751829040991,-460.0,0.00017241,2]
[370010171,1751829041001,-460.0,0.00017241,2]
[370010172,1751829041011,-460.0,0.00017241,2]
[370010173,1751829041020,-193.90173622,0.00017241,2]
[370010174,1751829041030,-460.0,0.00017241,2]
[370010175,1751829041039,-327.34433469,0.00017241,2]
[370010176,1751829041049,-151.0,0.000173,2]
[370010177,1751829041059,-151.0,0.000174,2]
[370010178,1751829041068,-151.0,0.000174,2]
[370010179,1751829041078,-460.0,0.00017408,2]
[370010180,1751829041088,-460.0,0.00017408,2]
[370010181,1751829041098,-460.0,0.00017408,2]
[370010182,1751829041107,-460.0,0.00017408,2]
[370010183,1751829041117,-460.0,0.00017408,2]
[370010184,1751829041126,-1648.69,0.00017408,2]
[370010185,1751829041135,-460.0,0.00017408,2]
[370010186,1751829041145,-460.0,0.00017408,2]
[370010187,1751829041157,-460.0,0.00017409,2]
[370010188,1751829041166,-460.0,0.00017409,2]
[370010189,1751829041175,-2459.02,0.00017409,2]
[370010190,1751829041185,-460.0,0.00017409,2]
[370010191,1751829041194,-460.0,0.00017409,2]
[370010192,1751829041203,-1878.33,0.00017409,2]
[370010193,1751829041212,-460.0,0.00017409,2]
[370010194,1751829041222,-460.0,0.00017409,2]
[370010195,1751829041231,-2261.21,0.00017409,2]
[370010196,1751829041240,-460.0,0.00017409,2]
[370010197,1751829041250,-2373.73,0.00017409,2]
[370010198,1751829041259,-460.0,0.00017409,2]
[370010199,1751829041268,-1821.06,0.00017409,2]
[370010200,1751829041277,-460.0,0.00017409,2]
[370010201,1751829041287,-460.0,0.00017409,2]
[370010202,1751829041296,-1339.43,0.00017409,2]
[370010203,1751829041306,-460.0,0.00017409,2]
[370010204,1751829041315,-460.0,0.00017409,2]
[370010205,1751829041325,-460.0,0.00017409,2]
[370010206,1751829041335,-1083.34,0.00017409,2]
[370010207,1751829041344,-1423.25,0.00017409,2]
[370010208,1751829041354,-154.5618904,0.00017409,2]
[370010209,1751829041363,-460.0,0.00017409,2]
[370010210,1751829041372,-460.0,0.00017411,2]
[370010211,1751829041382,-460.0,0.00017411,2]
[370010212,1751829041392,-460.0,0.00017411,2]
[370010213,1751829041401,-294.18,0.00017411,2]
[370010214,1751829041411,-460.0,0.00017411,2]
[370010215,1751829041420,-460.0,0.00017411,2]
[370010216,1751829041429,-460.0,0.00017411,2]
[370010217,1751829041439,-460.0,0.00017411,2]
[370010218,1751829041450,-460.0,0.00017411,2]
[370010219,1751829041460,-460.0,0.00017411,2]
[370010220,1751829041470,-460.0,0.00017411,2]
[370010221,1751829041481,-460.0,0.00017411,2]
[370010222,1751829041492,-460.0,0.00017411,2]
[370010223,1751829041501,-460.0,0.00017411,2]
[370010224,1751829041511,-460.0,0.00017411,2]
[370010225,1751829041520,-460.0,0.00017411,2]
[370010226,1751829041530,-460.0,0.00017411,2]
[370010227,1751829041540,-460.0,0.00017411,2]
[370010228,1751829041550,-726.78,0.00017411,2]
[370010229,1751829041560,-460.0,0.00017411,2]
[370010230,1751829041570,-460.0,0.00017411,2]
[370010231,1751829041580,-2304.57,0.00017411,2]
[370010232,1751829041644,-460.0,0.00017411,2]
[370010233,1751829041657,-482.31,0.00017411,2]
[370010234,1751829041668,-460.0,0.00017411,2]
[370010235,1751829041678,-370.81699188,0.00017411,2]
[370010236,1751829041687,-716.37,0.00017411,2]
[370010237,1751829041697,-460.0,0.00017411,2]
[370010238,1751829041706,-316.08,0.00017411,2]
[370010239,1751829041715,-460.0,0.00017411,2]
[370010240,1751829041726,-460.0,0.00017411,2]
[370010241,1751829041736,-460.0,0.00017411,2]
[370010242,1751829041746,-460.0,0.00017411,2]
[370010243,1751829041755,-460.0,0.00017411,2]
[370010244,1751829041764,-460.0,0.00017411,2]
[370010245,1751829041774,-202.79422341,0.00017414,2]
[370010246,1751829041785,-552.83231273,0.00017414,2]
[370010247,1751829041795,-518.66,0.00017415,2]
[370010248,1751829041804,-460.0,0.00017415,2]
[370010249,1751829041815,-460.0,0.00017415,2]
[370010250,1751829041825,-460.0,0.00017415,2]
[370010251,1751829041836,-460.0,0.00017415,2]
[370010252,1751829041846,-568.47,0.00017415,2]
[370010253,1751829041855,-482.50197734,0.00017415,2]
[370010254,1751829041864,-644.88,0.00017415,2]
[370010255,1751829041874,-1673.97,0.00017415,2]
[370010256,1751829041883,-671.7,0.00017415,2]
[370010257,1751829041893,-1018.32,0.00017415,2]
[370010258,1751829041903,-460.0,0.00017415,2]
[370010259,1751829041912,-460.0,0.00017415,2]
[370010260,1751829041922,-1464.64,0.00017415,2]
[370010261,1751829041931,-1068.81,0.00017415,2]
[370010262,1751829041940,-460.0,0.00017416,2]
[370010263,1751829041950,-460.0,0.00017416,2]
[370010264,1751829041959,-151.0,0.00017416,2]
[370010265,1751829041969,-151.0,0.00017416,2]
[370010266,1751829041979,-201.884313,0.00017416,2]
[370010267,1751829041988,-151.0,0.00017416,2]
[370010268,1751829041998,-195.125959,0.00017416,2]
[370010269,1751829042007,-151.0,0.00017416,2]
[370010270,1751829042016,-151.0,0.00017416,2]
[370010271,1751829042026,-195.125959,0.00017416,2]
[370010272,1751829042035,-151.0,0.00017416,2]
[370010273,1751829042045,-151.0,0.00017416,2]
[370010274,1751829042054,-151.0,0.00017416,2]
[370010275,1751829042065,-460.0,0.00017416,2]
[370010276,1751829042075,-2141.93,0.00017416,2]
[370010277,1751829042084,-151.0,0.00017416,2]
[370010278,1751829042093,-151.0,0.00017416,2]
[370010279,1751829042102,-151.0,0.00017416,2]
[370010280,1751829042111,-151.0,0.00017416,2]
[370010281,1751829042120,-460.0,0.00017416,2]
[370010282,1751829042130,-151.0,0.00017416,2]
[370010283,1751829042139,-151.0,0.00017416,2]
[370010284,1751829042149,-229.86543,0.00017416,2]
[370010285,1751829042158,-1393.2,0.00017416,2]
[370010286,1751829042167,-585.611376,0.00017416,2]
[370010287,1751829042177,-585.611376,0.00017416,2]
[370010288,1751829042186,-151.0,0.00017416,2]
[370010290,1751829042195,-521.21,0.00017416,2]
[370010291,1751829042204,-3697.57,0.00017416,2]
[370010292,1751829042213,-1179.98,0.00017416,2]
[370010293,1751829042225,-308.034684,0.00017416,2]
[370010294,1751829042234,-308.034684,0.00017416,2]
[370010295,1751829042243,-25000.0,0.00017417,2]
[370010296,1751829042253,-13228.23934115,0.00017417,2]
[370010297,1751829042263,-500.0,0.00017417,2]
[370010298,1751829042273,-5000.0,0.00017417,2]
[370010299,1751829042283,-151.0,0.00017417,2]
[370010300,1751829042292,-690.642,0.00017417,2]
[370010301,1751829042302,-154.73315175,0.00017417,2]
[370010302,1751829042312,-151.0,0.00017417,2]
[370010303,1751829042321,-151.0,0.00017417,2]
[370010304,1751829042331,-151.0,0.00017417,2]
[370010305,1751829042339,-3000.0,0.00017417,2]
[370010306,1751829042348,-151.0,0.00017417,2]
[370010308,1751829042358,-3000.0,0.00017417,2]
[370010309,1751829042367,-151.0,0.00017417,2]
[370010310,1751829042376,-3000.0,0.00017417,2]
[370010311,1751829042385,-3000.0,0.00017417,2]
[370010312,1751829042394,-207.4,0.00017417,2]
[370010313,1751829042404,-151.0,0.00017417,2]
[370010314,1751829042414,-3000.0,0.00017417,2]
[370010315,1751829042424,-1200.0,0.00017417,2]
[370010316,1751829042433,-151.0,0.00017417,2]
[370010318,1751829042443,-3000.0,0.00017417,2]
[370010320,1751829042452,-1200.0,0.00017417,2]
[370010322,1751829042463,-151.0,0.00017417,2]
[370010324,1751829042472,-1200.0,0.00017417,2]
[370010325,1751829042483,-151.0,0.00017417,2]
[370010326,1751829042493,-1200.0,0.00017417,2]
[370010327,1751829042503,-151.0,0.00017417,2]
[370010328,1751829042512,-151.0,0.00017417,2]
[370010329,1751829042522,-1200.0,0.00017417,2]
[370010330,1751829042531,-151.0,0.00017417,2]
[370010331,1751829042541,-151.0,0.00017417,2]
[370010332,1751829042551,-3000.0,0.00017417,2]
[370010333,1751829042560,-151.0,0.00017417,2]
[370010334,1751829042570,-1200.0,0.00017417,2]
[370010335,1751829042581,-3000.0,0.00017417,2]
[370010336,1751829042591,-151.0,0.00017417,2]
[370010337,1751829042601,-151.0,0.00017417,2]
[370010338,1751829042611,-1200.0,0.00017417,2]
[370010340,1751829042621,-3000.0,0.00017417,2]
[370010342,1751829042631,-151.0,0.00017417,2]
[370010344,1751829042642,-3000.0,0.00017417,2]
[370010346,1751829042655,-151.0,0.00017417,2]
[370010348,1751829042665,-1200.0,0.00017417,2]
[370010350,1751829042675,-151.0,0.00017417,2]
[370010351,1751829042684,-1200.0,0.00017417,2]
[370010352,1751829042694,-151.0,0.00017417,2]